[Event "2nd Serbia Open Masters 2022"]
[Site "Novi Sad"]
[Date "2022.07.01"]
[Round "4.31"]
[White "Ohanyan, Emin"]
[Black "Kovacevic, Aleksandar"]
[Result "1-0"]
[ECO "A79"]
[WhiteElo "2366"]
[BlackElo "2503"]
[Annotator "TA"]
[PlyCount "119"]
[EventDate "2022.06.28"]
[EventType "swiss"]
[EventCountry "SRB"]
[SourceTitle "playchess.com"]
[Source "ChessBase"]
[SourceQuality "1"]
[TimeControl "40/5400+30:900+30"]

{[%evp 24,119,56,41,65,-14,-14,-21,-11,-16,-15,-25,-25,-23,-11,-70,69,64,64,58,65,77,72,32,85,100,81,65,133,65,114,117,101,101,309,285,546,523,1283,283,329,328,334,332,307,263,430,260,262,254,289,351,357,350,391,391,380,355,359,285,431,421,420,391,386,386,410,410,568,562,485,505,598,604,650,641,641,650,643,621,568,0,615,508,472,468,641,638,618,591,1020,0,562,0,890,881,899,746]} 1. d4 {[%emt 0:00:03]} Nf6 {[%emt 0:00:16]} 2. c4 {[%emt 0:00:03]} e6 {[%emt 0:00:58]} 3. Nf3 {[%emt 0:00:04]} c5 {[%emt 0:00:56]} 4. d5 {[%emt 0:00:06]} d6 {[%emt 0:00:07]} 5. Nc3 {[%emt 0:00:03]} exd5 {[%emt 0:00:06]} 6. cxd5 {[%emt 0:00:04]} g6 {[%emt 0:00:10]} 7. Nd2 {[%emt 0:00:18]} Bg7 {[%emt 0:00:22]} 8. e4 {[%emt 0:00:15]} O-O {[%emt 0:00:16]} 9. Be2 {[%emt 0:00:04]} Re8 {[%emt 0:00:21]} 10. O-O {[%emt 0:00:32]} Na6 {[%emt 0:00:17]} 11. f3 {[%emt 0:00:27]} Nc7 {[%emt 0:00:16]} 12. a4 {[%emt 0:03:23]} b6 {[%emt 0:00:20]} 13. Kh1 {[%emt 0:42:40]} Rb8 {[%emt 0:07:12] A79: Modern Benoni: Classical: 9...Re8 10 Nd2 Na6 11 f3.} 14. Qc2 {[%emt 0:15:10]} (14. Nc4 $14) 14... a6 $11 {[%emt 0:12:27]} (14... Nfxd5 15. exd5 Bxc3 16. Qxc3 $16) 15. Nc4 {[%emt 0:03:35]} b5 {[%emt 0:00:49] The position is equal.} 16. axb5 {[%emt 0:02:17]} axb5 {[%emt 0:03:40]} 17. Na5 {[%emt 0:00:34]} Bd7 {[%emt 0:00:45] [#]} 18. Rd1 $146 {[%emt 0:07:14]} ({Predecessor:} 18. Bg5 h6 19. Bh4 Qe7 20. Rfe1 g5 21. Bg3 Nh5 22. Bf2 Qf8 23. Nc6 Ra8 24. Nxb5 Nxb5 25. Bxb5 Rxa1 26. Rxa1 {1-0 (30) Jankovic,A (2548)-Cabrilo,G (2420) Prijedor 2015}) 18... b4 {[%emt 0:24:10]} 19. Na4 {[%emt 0:11:18] [#]} ({White should play} 19. Nb1 $11) 19... Qe7 {[%emt 0:07:40] [#]} (19... Ncxd5 $1 $15 20. Nc4 b3) 20. Nxc5 $1 $14 {[%emt 0:01:02]} dxc5 {[%emt 0:06:17]} 21. d6 {[%emt 0:00:04]} Qd8 {[%emt 0:00:09] ...Ne6 is the strong threat.} (21... b3 $2 22. Nxb3 (22. dxe7 $2 bxc2 23. Rd2 Ne6 $19) 22... Qe5 23. dxc7 Qxc7 24. Nxc5 $18 (24. Qxc5 Qxc5 25. Nxc5 Bb5 $16)) 22. dxc7 {[%emt 0:00:14]} Qxc7 {[%emt 0:00:06]} 23. Be3 {[%emt 0:01:34]} Bb5 {[%emt 0:11:26]} (23... Be6 $14) 24. Bxb5 $16 {[%emt 0:02:50]} Rxb5 {[%emt 0:00:03]} 25. Nc4 {[%emt 0:00:33] Hoping for e5.} b3 {[%emt 0:01:58] [#]} ({Better is} 25... Rbb8 $1 $14) 26. Qf2 {[%emt 0:03:00]} (26. Qd2 $1 $16) 26... Re6 {[%emt 0:11:21] Prevents Nd6.} (26... Rd8 $14) 27. e5 {[%emt 0:02:35]} Ne8 {[%emt 0:01:48]} 28. f4 $36 {[%emt 0:00:08][%mdl 2048] White is in control. White is more active.} f6 $2 {[%emt 0:00:41]} (28... Rb8 $16 29. Rd5 (29. Bxc5 Rc8 $14) 29... Qb7) 29. f5 $18 {[%emt 0:00:58]} gxf5 {[%emt 0:05:37]} (29... Re7 30. fxg6 hxg6) 30. Qxf5 {[%emt 0:00:07]} Qf7 {[%emt 0:00:21][%cal Rf6e5] [#]} 31. Nd6 $2 {[%emt 0:02:05]} (31. Ra7 $3 {[%mdl 512]} Qxa7 (31... Re7 32. Rxe7) 32. Qxe6+ Qf7 33. Qc8) 31... Rxe5 {[%emt 0:01:11]} 32. Qxe5 {[%emt 0:02:08] The board is on fire.} ({Worse is} 32. Nxf7 Rxf5 33. Ra7 c4 $11) 32... fxe5 {[%emt 0:00:08]} 33. Nxf7 {[%emt 0:00:02]} Kxf7 {[%emt 0:00:05]} 34. Rd5 {[%emt 0:00:54]} e4 $2 {[%emt 0:01:52]} (34... Ke6 35. Rd8 (35. Rxc5 Rxc5 36. Bxc5 e4 $18) 35... Nf6 36. Ra6+ Kf5) 35. Rxc5 {[%emt 0:00:32]} Rxc5 {[%emt 0:00:09]} 36. Bxc5 {[%emt 0:00:03] And now Ra7+ would win.} Bxb2 {[%emt 0:00:19][%mdl 4096] Endgame KRB-KBN} 37. Rb1 {[%emt 0:00:04]} Be5 {[%emt 0:00:09]} 38. Rxb3 {[%emt 0:00:07]} Nf6 {[%emt 0:00:12]} 39. g3 {[%emt 0:02:14]} Ke6 {[%emt 0:00:13]} 40. Kg2 {[%emt 0:00:00]} Kd5 {[%emt 0:00:00]} 41. Bg1 {[%emt 0:07:12]} Kc4 {[%emt 0:03:03]} (41... h5 $142 42. Rb6 Bc3) 42. Ra3 {[%emt 0:00:19]} Bb2 {[%emt 0:02:29]} 43. Ra2 {[%emt 0:01:28]} Bc3 {[%emt 0:00:38]} 44. Ra6 {[%emt 0:02:43]} Kd3 {[%emt 0:03:58]} 45. Rd6+ {[%emt 0:01:04]} Kc4 {[%emt 0:01:43]} 46. Kf1 {[%emt 0:00:48]} Be5 {[%emt 0:01:51]} 47. Rd8 {[%emt 0:01:28]} h5 {[%emt 0:00:42]} 48. Ke2 {[%emt 0:01:11]} Bb2 {[%emt 0:00:13]} 49. Be3 {[%emt 0:01:32]} Be5 {[%emt 0:00:44]} 50. Bf4 {[%emt 0:00:55]} Bd4 {[%emt 0:00:22]} 51. Rc8+ {[%emt 0:00:09]} Kd5 {[%emt 0:00:11]} 52. Rd8+ {[%emt 0:00:02]} Kc4 {[%emt 0:00:07]} 53. h3 {[%emt 0:02:29]} Nd5 {[%emt 0:00:27]} 54. Rc8+ {[%emt 0:00:21]} Kb3 {[%emt 0:00:07]} 55. Bd2 {[%emt 0:00:26]} Nf6 {[%emt 0:11:12]} 56. Rh8 {[%emt 0:01:26]} Kc2 {[%emt 0:00:00]} 57. Rc8+ {[%emt 0:00:13]} Kb3 {[%emt 0:00:00]} 58. Rh8 {[%emt 0:00:36]} (58. Rc6 $142) 58... Kc2 $1 {[%emt 0:00:00]} 59. Rd8 {[%emt 0:00:18]} Be5 {[%emt 0:00:00]} 60. Bg5 {[%emt 0:00:08] Weighted Error Value: White=0.62/Black=0.42} 1-0

[Event "2nd Serbia Open Masters 2022"]
[Site "Novi Sad"]
[Date "2022.07.01"]
[Round "4.33"]
[White "Tomazini, Zan"]
[Black "Koustav Chatterjee"]
[Result "0-1"]
[ECO "C54"]
[WhiteElo "2359"]
[BlackElo "2485"]
[Annotator "ChessBase"]
[PlyCount "74"]
[EventDate "2022.06.28"]
[EventType "swiss"]
[EventCountry "SRB"]
[SourceTitle "playchess.com"]
[Source "ChessBase"]
[SourceQuality "1"]
[TimeControl "40/5400+30:900+30"]

1. e4 {[%emt 0:00:06]} e5 {[%emt 0:00:17]} 2. Nf3 {[%emt 0:00:12]} Nc6 {[%emt 0:00:05]} 3. Bc4 {[%emt 0:00:32]} Bc5 {[%emt 0:02:47]} 4. d3 {[%emt 0:00:27]} Nf6 {[%emt 0:00:06]} 5. Bb3 {[%emt 0:00:19]} d6 {[%emt 0:01:14]} 6. c3 {[%emt 0:00:42]} a5 {[%emt 0:02:32]} 7. a4 {[%emt 0:00:37]} Ba7 {[%emt 0:13:28]} 8. Nbd2 {[%emt 0:01:56]} O-O {[%emt 0:03:50]} 9. Nf1 {[%emt 0:02:18]} d5 {[%emt 0:10:30]} 10. exd5 {[%emt 0:06:06]} Nxd5 {[%emt 0:00:06]} 11. Ng3 {[%emt 0:00:11]} f6 {[%emt 0:08:14]} 12. d4 {[%emt 0:06:42]} exd4 {[%emt 0:01:31]} 13. O-O {[%emt 0:00:11]} Be6 {[%emt 0:10:06]} 14. Re1 {[%emt 0:01:26]} Qd7 {[%emt 0:07:55]} 15. cxd4 {[%emt 0:20:11]} Rfe8 {[%emt 0:01:07]} 16. Ne4 {[%emt 0:04:24]} Bf7 {[%emt 0:11:57]} 17. Nc5 {[%emt 0:07:15]} Rxe1+ {[%emt 0:00:29]} 18. Qxe1 {[%emt 0:00:05]} Bxc5 {[%emt 0:01:26]} 19. dxc5 {[%emt 0:00:11]} Ndb4 {[%emt 0:03:02]} 20. Qc3 {[%emt 0:05:36]} Qd3 {[%emt 0:05:08]} 21. Bxf7+ {[%emt 0:02:17]} Kxf7 {[%emt 0:00:03]} 22. Bf4 {[%emt 0:00:59]} Re8 {[%emt 0:03:29]} 23. Rc1 {[%emt 0:07:16]} Qxc3 {[%emt 0:02:42]} 24. Rxc3 {[%emt 0:00:31]} Nd5 {[%emt 0:00:07]} 25. Rc4 {[%emt 0:00:22]} Nxf4 {[%emt 0:00:14]} 26. Rxf4 {[%emt 0:00:05]} Re2 {[%emt 0:00:04]} 27. g3 {[%emt 0:03:15]} Ke6 {[%emt 0:02:54]} 28. b4 {[%emt 0:10:45]} axb4 {[%emt 0:02:06]} 29. Nd4+ {[%emt 0:00:04]} Nxd4 {[%emt 0:01:25]} 30. Rxd4 {[%emt 0:00:04]} b3 {[%emt 0:02:19]} 31. Rb4 {[%emt 0:00:05]} b2 {[%emt 0:00:04]} 32. Kg2 {[%emt 0:00:15]} Kd5 {[%emt 0:00:08]} 33. Rxb7 {[%emt 0:02:07]} Kc4 {[%emt 0:00:27]} 34. a5 {[%emt 0:08:51]} Kc3 {[%emt 0:00:06]} 35. a6 {[%emt 0:00:05]} Re1 {[%emt 0:00:34]} 36. a7 {[%emt 0:01:07]} Ra1 {[%emt 0:00:07]} 37. c6 {[%emt 0:02:25]} Kc2 {[%emt 0:01:03]} 0-1

[Event "2nd Serbia Open Masters 2022"]
[Site "Novi Sad"]
[Date "2022.07.01"]
[Round "4.34"]
[White "Karthik Venkataraman"]
[Black "Zlatanovic, Boroljub"]
[Result "1/2-1/2"]
[ECO "E74"]
[WhiteElo "2480"]
[BlackElo "2341"]
[Annotator "TA"]
[PlyCount "126"]
[EventDate "2022.06.28"]
[EventType "swiss"]
[EventCountry "SRB"]
[SourceTitle "playchess.com"]
[Source "ChessBase"]
[SourceQuality "1"]
[TimeControl "40/5400+30:900+30"]

{[%evp 14,126,45,12,61,43,47,26,37,21,33,0,39,38,35,33,59,50,75,67,91,91,85,75,145,153,162,148,122,52,66,60,64,56,44,42,83,86,75,81,85,83,114,109,116,77,77,15,14,16,119,95,77,0,97,97,97,100,105,99,233,184,436,408,617,617,520,374,322,339,331,161,1160,1067,1111,1064,1056,956,743,602,1896,73,73,79,80,80,98,80,325,0,0,0,0,0,0,0,0,0,0,0,0,0,0,0,0,0,0,0,0,0,0,0,0,0,0]} 1. d4 {[%emt 0:00:06]} Nf6 {[%emt 0:03:18]} 2. c4 {[%emt 0:00:19]} g6 {[%emt 0:00:29]} 3. Nc3 {[%emt 0:00:23]} Bg7 {[%emt 0:00:13]} 4. e4 {[%emt 0:00:16]} d6 {[%emt 0:00:52]} 5. Be2 {[%emt 0:00:57]} O-O {[%emt 0:02:05]} 6. Bg5 {[%emt 0:00:14]} c5 {[%emt 0:00:42]} 7. d5 {[%emt 0:00:10]} Qa5 {[%emt 0:00:11]} 8. Qd2 {[%emt 0:05:01]} e6 {[%emt 0:00:47] E74: King's Indian: Averbakh Variation: 6...c5.} (8... a6 $11) 9. Nf3 $14 {[%emt 0:01:50]} exd5 {[%emt 0:03:24]} 10. cxd5 {[%emt 0:00:19]} Bg4 {[%emt 0:04:52] White has an edge.} 11. O-O {[%emt 0:02:27]} Nbd7 {[%emt 0:12:54] [#]} 12. Bf4 $146 {[%emt 0:02:37]} ({Predecessor:} 12. a4 a6 13. h3 Bxf3 14. Bxf3 c4 15. Be2 Rac8 16. Qf4 Qc5 17. a5 b5 18. axb6 Qxb6 {1-0 (29) Szeberenyi,A (2377)-Juhasz,B (2214) Hungary 2018}) 12... Ne8 {[%emt 0:02:55]} (12... b5 $5) 13. a4 {[%emt 0:04:03]} Bxf3 {[%emt 0:07:00]} 14. Bxf3 {[%emt 0:00:23]} Ne5 {[%emt 0:00:08]} 15. Be2 {[%emt 0:00:06]} f5 {[%emt 0:03:07]} 16. exf5 {[%emt 0:03:07]} Rxf5 {[%emt 0:04:14]} 17. Bg3 {[%emt 0:09:08]} Qb4 {[%emt 0:03:18]} 18. Qc2 {[%emt 0:02:46]} Nf6 {[%emt 0:11:01]} (18... c4 $142) 19. a5 $1 $16 {[%emt 0:07:10]} c4 {[%emt 0:01:21]} 20. Ra4 {[%emt 0:00:28]} Qc5 {[%emt 0:00:10]} 21. Bxe5 {[%emt 0:00:22]} (21. b4 $16 cxb3 22. Qxb3) 21... Rxe5 $14 {[%emt 0:00:51]} 22. Bxc4 {[%emt 0:00:09]} Rf8 {[%emt 0:04:34]} 23. Bb5 {[%emt 0:05:57]} a6 {[%emt 0:02:23]} 24. Bd3 {[%emt 0:20:55]} Kh8 {[%emt 0:04:48]} 25. Rh4 {[%emt 0:02:19]} Rh5 {[%emt 0:01:45]} 26. b4 {[%emt 0:01:33]} Qc7 {[%emt 0:02:52]} 27. Rc4 {[%emt 0:03:24]} Qe7 {[%emt 0:00:49]} 28. Be2 {[%emt 0:00:36]} Rf5 {[%emt 0:02:40]} 29. Bf3 {[%emt 0:03:15]} Nd7 {[%emt 0:04:27]} 30. Qe2 {[%emt 0:03:03]} (30. Rc7 Rxf3 31. gxf3 Qh4 $11) (30. Re4 $16 Qf6 31. Bg4 Qxc3 32. Qxc3 Bxc3 33. Bxf5 (33. Re7 R8f7 $17) 33... gxf5 34. Rc4) 30... Ne5 $11 {[%emt 0:03:37][%cal Rf5f3]} 31. Bg4 $36 {[%emt 0:03:19][%mdl 2048] Black is under pressure.} Rf4 {[%emt 0:01:00]} (31... Rxf2 $11 32. Rxf2 Rxf2 33. Kxf2 Qf6+ 34. Kg3 Nxc4 35. Qe8+ (35. Qxc4 Qxc3+ 36. Qxc3 Bxc3 $11) 35... Bf8) 32. Rxf4 $1 $16 {[%emt 0:02:20]} Rxf4 {[%emt 0:00:01]} 33. Bh3 {[%emt 0:00:19]} (33. g3 $1 $16 {[%cal Rg3f4]} Rc4 34. Ne4 Rxb4 35. Be6) 33... g5 {[%emt 0:04:39]} (33... Qh4 $11 {keeps the balance.}) 34. Be6 $1 {[%emt 0:00:04]} Nf3+ {[%emt 0:01:15][%mdl 64] Discovered Attack} 35. gxf3 {[%emt 0:00:07]} Bxc3 {[%emt 0:00:05]} 36. Rc1 {[%emt 0:03:32]} Qf6 {[%emt 0:00:56]} (36... Bxb4 $16 37. Qb2+ Qf6 38. Rc8+ Kg7 39. Rc7+ Kh6) 37. Bg4 {[%emt 0:00:56] And now Qd3 would win.} h5 $2 {[%emt 0:06:36]} (37... Qg7 38. Qd3 Be5 39. Rc8+ Rf8) 38. Bxh5 {[%emt 0:05:28] Threatens to win with Qd3.} Rxb4 {[%emt 0:01:47]} (38... Qg7 $142 39. Qe6 Rf8) 39. Qe8+ $18 {[%emt 0:03:34]} Kg7 {[%emt 0:00:09]} 40. Qd7+ {[%emt 0:00:00]} Kh6 {[%emt 0:00:00] [#]} 41. Bg4 $1 {[%emt 0:00:39] aiming for Bf5.} Rf4 {[%emt 0:04:30] Inhibits Bf5.} 42. Rb1 {[%emt 0:01:34]} ({Don't take} 42. Qxb7 Bd4 43. Rc2 (43. Qxa6 {leads to mate.} Rxg4+ 44. Kf1 Qxf3 45. Qxd6+ Kh5) 43... Bc5 44. Qxa6 Qd4) (42. Kg2 $142) 42... Bb4 $2 {[%emt 0:03:11] [#]} (42... Qg7) 43. Rxb4 $1 {[%emt 0:04:10][%mdl 512]} Rxb4 {[%emt 0:00:45][%mdl 4096] Endgame KQR-KQB} 44. Bf5 {[%emt 0:00:04][%csl Gf5][%cal Rd7h7]} g4 {[%emt 0:01:09]} 45. fxg4 {[%emt 0:00:05][%cal Oh2h4]} ({Weaker is} 45. Qh7+ Kg5 46. fxg4 Kf4 $16) 45... Kg5 {[%emt 0:01:14]} 46. Kg2 {[%emt 0:04:04][%cal Oh2h4]} b5 {[%emt 0:03:25]} 47. Qe8 $2 {[%emt 0:07:33]} (47. h4+ $18 {has better winning chances.} Kf4 48. Qe6 Qxe6 49. dxe6) 47... Rxg4+ $16 {[%emt 0:02:39]} 48. Bxg4 {[%emt 0:00:05]} Kxg4 {[%emt 0:00:03] KQ-KQ} 49. Qe6+ {[%emt 0:01:15]} Kg5 {[%emt 0:00:05]} 50. h4+ $1 {[%emt 0:00:06]} Kg6 {[%emt 0:00:05] [#]} 51. h5+ $2 {[%emt 0:00:46]} (51. Qxf6+ $1 $18 Kxf6 52. Kf1) 51... Kg7 $11 {[%emt 0:01:08] The position is equal.} 52. Kf1 {[%emt 0:00:50] Strongly threatening Qxf6+.} Qa1+ {[%emt 0:01:32]} 53. Ke2 {[%emt 0:00:14]} Qb2+ {[%emt 0:00:19]} 54. Kf3 {[%emt 0:00:24]} Qf6+ {[%emt 0:00:10]} 55. Kg4 {[%emt 0:02:02]} Qd4+ {[%emt 0:00:53]} 56. Kg3 {[%emt 0:00:32]} Qc3+ {[%emt 0:00:52]} 57. Kg4 {[%emt 0:01:28]} Qd4+ {[%emt 0:00:21]} 58. Kg3 {[%emt 0:00:04]} Qc3+ {[%emt 0:00:04]} 59. f3 {[%emt 0:00:04]} Qf6 {[%emt 0:00:26]} 60. f4 {[%emt 0:03:45] Black must now prevent Qxf6+.} b4 $1 {[%emt 0:00:15]} 61. Qd7+ {[%emt 0:01:43]} Kh6 {[%emt 0:01:35] ( -> ...Qg7+)} 62. Qe6 {[%emt 0:00:10]} Kg7 {[%emt 0:00:04]} 63. Qd7+ {[%emt 0:00:35]} Kh6 {[%emt 0:00:34] White really could win this.  Weighted Error Value: White=0.37/Black=0.26 (precise)} 1/2-1/2

[Event "2nd Serbia Open Masters 2022"]
[Site "Novi Sad"]
[Date "2022.07.01"]
[Round "4.35"]
[White "Anuj Shrivatri"]
[Black "Bronstein, Or"]
[Result "1-0"]
[ECO "D16"]
[WhiteElo "2356"]
[BlackElo "2492"]
[Annotator "ChessBase"]
[PlyCount "99"]
[EventDate "2022.06.28"]
[EventType "swiss"]
[EventCountry "SRB"]
[SourceTitle "playchess.com"]
[Source "ChessBase"]
[SourceQuality "1"]
[TimeControl "40/5400+30:900+30"]

1. d4 {[%emt 0:00:11]} d5 {[%emt 0:00:39]} 2. c4 {[%emt 0:00:07]} c6 {[%emt 0:00:05]} 3. Nf3 {[%emt 0:00:07]} Nf6 {[%emt 0:00:12]} 4. Nc3 {[%emt 0:00:06]} dxc4 {[%emt 0:00:30]} 5. a4 {[%emt 0:00:04]} e6 {[%emt 0:00:12]} 6. e3 {[%emt 0:00:26]} Bb4 {[%emt 0:00:09]} 7. Bxc4 {[%emt 0:03:11]} O-O {[%emt 0:00:06]} 8. O-O {[%emt 0:02:22]} h6 {[%emt 0:06:21]} 9. Qe2 {[%emt 0:06:46]} a5 {[%emt 0:00:01]} 10. e4 {[%emt 0:08:27]} b6 {[%emt 0:11:27]} 11. Na2 {[%emt 0:18:45]} Be7 {[%emt 0:00:32]} 12. Rd1 {[%emt 0:00:18]} Ba6 {[%emt 0:01:54]} 13. b3 {[%emt 0:04:08]} Re8 {[%emt 0:10:46]} 14. Bf4 {[%emt 0:06:18]} Bb7 {[%emt 0:08:23]} 15. Ne5 {[%emt 0:06:16]} Rf8 {[%emt 0:00:45]} 16. Rac1 {[%emt 0:05:13]} b5 {[%emt 0:03:59]} 17. Bd3 {[%emt 0:01:29]} b4 {[%emt 0:09:34]} 18. Nc4 {[%emt 0:06:59]} Re8 {[%emt 0:01:39]} 19. e5 {[%emt 0:04:02]} Nd5 {[%emt 0:12:25]} 20. Qe4 {[%emt 0:01:29]} g6 {[%emt 0:00:01]} 21. Bxh6 {[%emt 0:00:37]} Kh7 {[%emt 0:00:01]} 22. Bd2 {[%emt 0:06:38]} Rh8 {[%emt 0:01:09]} 23. Qf3 {[%emt 0:03:28]} Kg7 {[%emt 0:03:11]} 24. Be4 {[%emt 0:01:01]} Nd7 {[%emt 0:03:17]} 25. Ne3 {[%emt 0:01:13]} N7b6 {[%emt 0:03:18]} 26. Rc2 {[%emt 0:01:26]} Rc8 {[%emt 0:05:34]} 27. Ng4 {[%emt 0:00:16]} Ba6 {[%emt 0:04:24]} 28. Nc1 {[%emt 0:00:55]} Bg5 {[%emt 0:04:39]} 29. Be1 {[%emt 0:02:20]} Qe7 {[%emt 0:04:57]} 30. g3 {[%emt 0:00:45]} c5 {[%emt 0:00:29]} 31. dxc5 {[%emt 0:01:53]} Rxc5 {[%emt 0:00:01]} 32. Rxc5 {[%emt 0:02:57]} Qxc5 {[%emt 0:00:01]} 33. Nd3 {[%emt 0:00:13]} Qc7 {[%emt 0:02:02]} 34. h4 {[%emt 0:00:27]} Be7 {[%emt 0:00:01]} 35. Rc1 {[%emt 0:00:58]} Nc3 {[%emt 0:00:46]} 36. Bxc3 {[%emt 0:01:18]} bxc3 {[%emt 0:00:01]} 37. Nf4 {[%emt 0:00:08]} Qd7 {[%emt 0:02:20]} 38. Qxc3 {[%emt 0:00:49]} Ba3 {[%emt 0:00:39]} 39. Nf6 {[%emt 0:01:13]} Qe7 {[%emt 0:01:33]} 40. Rd1 {[%emt 0:00:00]} Bb4 {[%emt 0:00:00]} 41. Qf3 {[%emt 0:06:35]} Qc7 {[%emt 0:11:07]} 42. Ng4 {[%emt 0:02:11]} Qe7 {[%emt 0:01:04]} 43. h5 {[%emt 0:01:18]} gxh5 {[%emt 0:03:19]} 44. Nf6 {[%emt 0:00:12]} Rd8 {[%emt 0:00:41]} 45. N4xh5+ {[%emt 0:02:54]} Kh8 {[%emt 0:00:29]} 46. Rxd8+ {[%emt 0:00:26]} Qxd8 {[%emt 0:00:01]} 47. Qg4 {[%emt 0:00:22]} Qf8 {[%emt 0:00:19]} 48. Nf4 {[%emt 0:00:06]} Qd8 {[%emt 0:00:34]} 49. Qh4+ {[%emt 0:00:06]} Kg7 {[%emt 0:00:05]} 50. N6h5+ {[%emt 0:00:28]} 1-0

[Event "2nd Serbia Open Masters 2022"]
[Site "Novi Sad"]
[Date "2022.07.01"]
[Round "4.36"]
[White "Rohith Krishna S"]
[Black "Janzelj, Tim"]
[Result "1-0"]
[ECO "A89"]
[WhiteElo "2337"]
[BlackElo "2470"]
[Annotator "TA"]
[PlyCount "67"]
[EventDate "2022.06.28"]
[EventType "swiss"]
[EventCountry "SRB"]
[SourceTitle "playchess.com"]
[Source "ChessBase"]
[SourceQuality "1"]
[TimeControl "40/5400+30:900+30"]

{[%evp 20,67,40,31,83,83,85,84,78,84,74,76,128,127,127,127,126,113,164,163,169,164,178,165,209,211,191,132,254,259,364,364,357,357,362,362,345,352,477,332,619,610,610,611,588,600,595,583,979,969]} 1. Nf3 {[%emt 0:01:17]} f5 {[%emt 0:00:13]} 2. g3 {[%emt 0:00:14]} Nf6 {[%emt 0:00:05]} 3. Bg2 {[%emt 0:00:14]} g6 {[%emt 0:00:08]} 4. b3 {[%emt 0:00:40]} Bg7 {[%emt 0:00:09]} 5. Bb2 {[%emt 0:00:07]} d6 {[%emt 0:00:10]} 6. d4 {[%emt 0:00:30]} O-O {[%emt 0:00:09]} 7. O-O {[%emt 0:01:11]} Ne4 {[%emt 0:01:34]} 8. c4 {[%emt 0:02:46]} Nc6 {[%emt 0:01:40]} 9. Nc3 {[%emt 0:08:34]} e5 {[%emt 0:04:13]} 10. dxe5 {[%emt 0:01:22]} Nxc3 {[%emt 0:00:49]} 11. Bxc3 {[%emt 0:00:10]} Nxe5 {[%emt 0:07:27] A89: Dutch Defence: Leningrad System: 5 Nf3 0-0 6 0-0 d6 7 Nc3 Nc6.} ({Don't take} 11... Be6 12. Qc1 $16) (11... dxe5 $14 12. Qd5+ Kh8) 12. Nxe5 $16 {[%emt 0:03:04]} dxe5 {[%emt 0:00:09]} 13. Qxd8 $1 {[%emt 0:01:04]} Rxd8 {[%emt 0:00:01] White is better.} 14. Rad1 {[%emt 0:00:01] [#]} Rxd1 $146 {[%emt 0:22:54]} ({Predecessor:} 14... Rd6 15. Rxd6 cxd6 16. Rd1 Bf8 17. c5 e4 18. cxd6 Bd7 19. f3 Rc8 20. Be5 Rc5 {1-0 (42) Tella,J (2310)-Keskinen,S Naantali 1996}) 15. Rxd1 {[%emt 0:00:37]} c6 {[%emt 0:02:23]} (15... Kf7 $142) 16. Rd8+ {[%emt 0:01:49]} Kf7 {[%emt 0:00:09] [#]} 17. Bb4 $1 {[%emt 0:03:19] 0x0.001b69cc40bddp-1022s more active pieces.} e4 {[%emt 0:11:00] [#]} 18. f3 $1 {[%emt 0:00:51]} Bf6 {[%emt 0:00:05]} (18... Be5 $16 {keeps fighting.}) 19. Rf8+ $18 {[%emt 0:00:41]} Kg7 {[%emt 0:00:01] And now ...Bd4+ would win.} 20. e3 {[%emt 0:07:37] Inhibits Bd4.} ({Not} 20. fxe4 Bd4+ 21. Kf1 c5 $17) 20... exf3 {[%emt 0:20:26]} 21. Bxf3 {[%emt 0:00:23]} Be5 {[%emt 0:00:09]} 22. Re8 {[%emt 0:05:19]} Kf6 {[%emt 0:00:16]} 23. Bc5 {[%emt 0:06:54]} (23. g4 $18 {[%cal Og4g5] aiming for g5+!} a5 24. Bc5) 23... a5 {[%emt 0:04:24]} (23... b6 $16) 24. a4 {[%emt 0:03:39]} Bc3 {[%emt 0:08:14]} (24... Rb8 $142 25. Ba7 Ra8) 25. Bd6 {[%emt 0:04:43]} Kf7 {[%emt 0:01:06]} 26. Rf8+ {[%emt 0:00:46]} Ke6 {[%emt 0:01:14]} 27. c5 {[%emt 0:00:09]} Bg7 {[%emt 0:02:26]} 28. Rg8 {[%emt 0:00:34]} Bf6 {[%emt 0:03:02]} 29. g4 {[%emt 0:00:31]} Kd7 $2 {[%emt 0:03:18]} (29... Kf7 30. Rf8+ Kg7 31. gxf5 gxf5) 30. Rf8 {[%emt 0:03:25] White is clearly winning.} Bg5 {[%emt 0:00:14]} 31. gxf5 {[%emt 0:01:42]} gxf5 {[%emt 0:00:27]} 32. Rxf5 {[%emt 0:02:09]} Bxe3+ {[%emt 0:00:09]} 33. Kh1 {[%emt 0:00:14] Threatens to win with Rf6.} Bh6 {[%emt 0:03:42]} 34. Rf6 {[%emt 0:00:12] Black got outplayed after the opening.  Weighted Error Value: White=0.10 (very precise) /Black=0.55} 1-0